[Event "Titled Tuesday Blitz July 18 Early 2023"]
[White "Wartiovaara, Oliver"]
[Black "Bachmann, Axel"]
[WhiteFideId "513024"]
[BlackFideId "3700488"]
[WhiteElo "2480"]
[BlackElo "2793"]
[Result "0-1"]
[Round "2"]
[TimeControl "180+2"]
[Date "2023.07.18"]
[WhiteClock "0:01:49"]
[BlackClock "0:02:02"]
[Board "105"]

1. e4 {[%clk 0:03:00]}  e5 {[%clk 0:02:53]} 2. Nf3 {[%clk 0:02:58]}  Nf6 {[%clk 0:02:53]} 3. Nxe5 {[%clk 0:02:54]}  d6 {[%clk 0:02:53]} 4. Nd3 {[%clk 0:02:54]}  Nxe4 {[%clk 0:02:54]} 5. Qe2 {[%clk 0:02:55]}  Qe7 {[%clk 0:02:54]} 6. Nf4 {[%clk 0:02:55]}  Nf6 {[%clk 0:02:53]} 7. d4 {[%clk 0:02:50]}  Bf5 {[%clk 0:02:48]} 8. c3 {[%clk 0:02:40]}  d5 {[%clk 0:02:42]} 9. f3 {[%clk 0:02:34]}  h6 {[%clk 0:02:39]} 10. Qxe7+ {[%clk 0:02:28]}  Bxe7 {[%clk 0:02:40]} 11. Kf2 {[%clk 0:02:28]}  c5 {[%clk 0:02:28]} 12. dxc5 {[%clk 0:02:20]}  Bxc5+ {[%clk 0:02:29]} 13. Be3 {[%clk 0:02:20]}  Bxe3+ {[%clk 0:02:29]} 14. Kxe3 {[%clk 0:02:21]}  Nc6 {[%clk 0:02:29]} 15. Bd3 {[%clk 0:02:20]}  Bxd3 {[%clk 0:02:28]} 16. Kxd3 {[%clk 0:02:18]}  O-O-O {[%clk 0:02:26]} 17. Ne2 {[%clk 0:02:06]}  Rhe8 {[%clk 0:02:08]} 18. Nd2 {[%clk 0:01:59]}  Ne5+ {[%clk 0:02:06]} 19. Ke3 {[%clk 0:01:49]}  Nc4+ {[%clk 0:02:02]} 0-1


[Site "https://www.chess.com"]

[Event "Titled Tuesday Blitz July 18 Early 2023"]
[White "LangesNasenhaar"]
[Black "Ashraf, Artin"]
[BlackFideId "22514805"]
[WhiteElo "2442"]
[BlackElo "2734"]
[Result "1/2-1/2"]
[Round "2"]
[TimeControl "180+2"]
[Date "2023.07.18"]
[WhiteClock "0:00:05"]
[BlackClock "0:00:06"]
[Board "107"]

1. d4 {[%clk 0:03:00]}  d5 {[%clk 0:02:35]} 2. Nc3 {[%clk 0:03:00]}  Nc6 {[%clk 0:02:34]} 3. Bf4 {[%clk 0:03:00]}  Bf5 {[%clk 0:02:33]} 4. f3 {[%clk 0:02:59]}  e6 {[%clk 0:02:31]} 5. e4 {[%clk 0:02:57]}  Bg6 {[%clk 0:02:25]} 6. Bb5 {[%clk 0:02:56]}  Ne7 {[%clk 0:02:21]} 7. h4 {[%clk 0:02:51]}  h6 {[%clk 0:02:09]} 8. h5 {[%clk 0:02:50]}  Bh7 {[%clk 0:02:00]} 9. Nge2 {[%clk 0:02:50]}  a6 {[%clk 0:01:56]} 10. Ba4 {[%clk 0:02:49]}  b5 {[%clk 0:01:55]} 11. Bb3 {[%clk 0:02:49]}  Na5 {[%clk 0:01:55]} 12. exd5 {[%clk 0:02:40]}  Nxb3 {[%clk 0:01:50]} 13. axb3 {[%clk 0:02:39]}  b4 {[%clk 0:01:46]} 14. Ne4 {[%clk 0:02:19]}  Nxd5 {[%clk 0:01:42]} 15. Be5 {[%clk 0:02:04]}  f6 {[%clk 0:01:26]} 16. Bg3 {[%clk 0:01:59]}  Bd6 {[%clk 0:01:26]} 17. Qd3 {[%clk 0:01:49]}  O-O {[%clk 0:01:20]} 18. Bxd6 {[%clk 0:01:21]}  cxd6 {[%clk 0:01:20]} 19. Rxa6 {[%clk 0:01:15]}  Rxa6 {[%clk 0:01:08]} 20. Qxa6 {[%clk 0:01:14]}  Qc7 {[%clk 0:01:07]} 21. Qxd6 {[%clk 0:01:06]}  Qxd6 {[%clk 0:00:58]} 22. Nxd6 {[%clk 0:01:05]}  Bxc2 {[%clk 0:00:58]} 23. Kf2 {[%clk 0:00:52]}  Bxb3 {[%clk 0:00:58]} 24. Rc1 {[%clk 0:00:48]}  Rd8 {[%clk 0:00:56]} 25. Rc8 {[%clk 0:00:41]}  Rxc8 {[%clk 0:00:54]} 26. Nxc8 {[%clk 0:00:42]}  Bc4 {[%clk 0:00:53]} 27. g3 {[%clk 0:00:34]}  Kf8 {[%clk 0:00:45]} 28. Nd6 {[%clk 0:00:34]}  Bd3 {[%clk 0:00:45]} 29. Nb7 {[%clk 0:00:25]}  Kf7 {[%clk 0:00:42]} 30. Nc5 {[%clk 0:00:25]}  Bc2 {[%clk 0:00:41]} 31. Ne4 {[%clk 0:00:23]}  Ke7 {[%clk 0:00:41]} 32. Nc1 {[%clk 0:00:18]}  Nb6 {[%clk 0:00:39]} 33. Nd2 {[%clk 0:00:13]}  Kd6 {[%clk 0:00:35]} 34. b3 {[%clk 0:00:12]}  Nd5 {[%clk 0:00:33]} 35. Nc4+ {[%clk 0:00:08]}  Kc6 {[%clk 0:00:33]} 36. Ne3 {[%clk 0:00:08]}  Nxe3 {[%clk 0:00:22]} 37. Kxe3 {[%clk 0:00:09]}  Kd5 {[%clk 0:00:21]} 38. Nd3 {[%clk 0:00:06]}  Bxb3 {[%clk 0:00:13]} 39. Nxb4+ {[%clk 0:00:06]}  Kd6 {[%clk 0:00:14]} 40. Nd3 {[%clk 0:00:06]}  Bc2 {[%clk 0:00:14]} 41. Nf4 {[%clk 0:00:06]}  Bf5 {[%clk 0:00:13]} 42. g4 {[%clk 0:00:05]}  Bh7 {[%clk 0:00:14]} 43. Ne2 {[%clk 0:00:05]}  Kd5 {[%clk 0:00:14]} 44. Nf4+ {[%clk 0:00:05]}  Kd6 {[%clk 0:00:14]} 45. Ne2 {[%clk 0:00:05]}  Bc2 {[%clk 0:00:13]} 46. Nf4 {[%clk 0:00:05]}  Ba4 {[%clk 0:00:12]} 47. Nd3 {[%clk 0:00:05]}  Bb5 {[%clk 0:00:13]} 48. Nf4 {[%clk 0:00:05]}  Bc6 {[%clk 0:00:11]} 49. Nh3 {[%clk 0:00:05]}  Kd5 {[%clk 0:00:09]} 50. Nf4+ {[%clk 0:00:05]}  Kd6 {[%clk 0:00:10]} 51. Nh3 {[%clk 0:00:05]}  e5 {[%clk 0:00:11]} 52. dxe5+ {[%clk 0:00:05]}  Kxe5 {[%clk 0:00:11]} 53. Nf2 {[%clk 0:00:06]}  f5 {[%clk 0:00:10]} 54. Nd3+ {[%clk 0:00:06]}  Kf6 {[%clk 0:00:09]} 55. Kf4 {[%clk 0:00:06]}  Bb5 {[%clk 0:00:09]} 56. Ne5 {[%clk 0:00:05]}  fxg4 {[%clk 0:00:07]} 57. fxg4 {[%clk 0:00:04]}  Be2 {[%clk 0:00:08]} 58. Ng6 {[%clk 0:00:04]}  Bd3 {[%clk 0:00:07]} 59. Ne5 {[%clk 0:00:04]}  Bb5 {[%clk 0:00:08]} 60. Nf3 {[%clk 0:00:04]}  Bc6 {[%clk 0:00:08]} 61. Ne5 {[%clk 0:00:05]}  Bd5 {[%clk 0:00:08]} 62. Nd3 {[%clk 0:00:05]}  Bc4 {[%clk 0:00:08]} 63. Ne5 {[%clk 0:00:05]}  Be2 {[%clk 0:00:08]} 64. Nd7+ {[%clk 0:00:06]}  Ke7 {[%clk 0:00:08]} 65. Ne5 {[%clk 0:00:07]}  Ke6 {[%clk 0:00:09]} 66. Nc6 {[%clk 0:00:07]}  Kd5 {[%clk 0:00:08]} 67. Ne7+ {[%clk 0:00:06]}  Ke6 {[%clk 0:00:08]} 68. Nf5 {[%clk 0:00:07]}  Kf6 {[%clk 0:00:09]} 69. Nd6 {[%clk 0:00:07]}  Bd3 {[%clk 0:00:09]} 70. Ne8+ {[%clk 0:00:07]}  Kf7 {[%clk 0:00:09]} 71. Nd6+ {[%clk 0:00:07]}  Ke6 {[%clk 0:00:09]} 72. Ne4 {[%clk 0:00:07]}  Kd5 {[%clk 0:00:09]} 73. Ng3 {[%clk 0:00:06]}  Ke6 {[%clk 0:00:09]} 74. g5 {[%clk 0:00:07]}  Bc2 {[%clk 0:00:07]} 75. gxh6 {[%clk 0:00:07]}  gxh6 {[%clk 0:00:08]} 76. Kg4 {[%clk 0:00:07]}  Bd1+ {[%clk 0:00:08]} 77. Kh4 {[%clk 0:00:07]}  Ke5 {[%clk 0:00:08]} 78. Nf1 {[%clk 0:00:08]}  Kf4 {[%clk 0:00:08]} 79. Nd2 {[%clk 0:00:07]}  Be2 {[%clk 0:00:09]} 80. Nb3 {[%clk 0:00:07]}  Ke5 {[%clk 0:00:09]} 81. Nc5 {[%clk 0:00:08]}  Bb5 {[%clk 0:00:09]} 82. Nb3 {[%clk 0:00:07]}  Kf4 {[%clk 0:00:07]} 83. Nd4 {[%clk 0:00:06]}  Bc4 {[%clk 0:00:07]} 84. Nc6 {[%clk 0:00:06]}  Ke4 {[%clk 0:00:07]} 85. Ne7 {[%clk 0:00:06]}  Ke5 {[%clk 0:00:06]} 86. Nc6+ {[%clk 0:00:06]}  Kd6 {[%clk 0:00:05]} 87. Nd4 {[%clk 0:00:06]}  Ke5 {[%clk 0:00:06]} 88. Nc6+ {[%clk 0:00:06]}  Kf4 {[%clk 0:00:06]} 89. Ne7 {[%clk 0:00:05]}  Bd3 {[%clk 0:00:06]} 90. Ng8 {[%clk 0:00:04]}  Be2 {[%clk 0:00:05]} 91. Nxh6 {[%clk 0:00:05]}  Bxh5 {[%clk 0:00:06]} 1/2-1/2


[Site "https://www.chess.com"]

[Event "Titled Tuesday Blitz July 18 Early 2023"]
[White "brm72"]
[Black "Polanco Nunez, Yoel Estarling"]
[BlackFideId "6401783"]
[WhiteElo "2601"]
[BlackElo "2263"]
[Result "1-0"]
[Round "2"]
[TimeControl "180+2"]
[Date "2023.07.18"]
[WhiteClock "0:00:45"]
[BlackClock "0:00:20"]
[Board "114"]

1. e4 {[%clk 0:03:00]}  e5 {[%clk 0:02:59]} 2. Nf3 {[%clk 0:03:00]}  Nc6 {[%clk 0:02:59]} 3. d4 {[%clk 0:03:01]}  exd4 {[%clk 0:02:59]} 4. Nxd4 {[%clk 0:03:01]}  Bc5 {[%clk 0:02:59]} 5. Nb3 {[%clk 0:03:01]}  Bb6 {[%clk 0:02:57]} 6. Qe2 {[%clk 0:03:02]}  Nge7 {[%clk 0:02:56]} 7. Nc3 {[%clk 0:03:01]}  O-O {[%clk 0:02:56]} 8. Be3 {[%clk 0:03:00]}  d6 {[%clk 0:02:51]} 9. O-O-O {[%clk 0:03:00]}  f5 {[%clk 0:02:50]} 10. f4 {[%clk 0:02:56]}  Bxe3+ {[%clk 0:02:44]} 11. Qxe3 {[%clk 0:02:56]}  a5 {[%clk 0:02:45]} 12. a3 {[%clk 0:02:50]}  fxe4 {[%clk 0:02:44]} 13. Nxe4 {[%clk 0:02:49]}  Nf5 {[%clk 0:02:43]} 14. Qd2 {[%clk 0:02:48]}  a4 {[%clk 0:02:38]} 15. Bc4+ {[%clk 0:02:40]}  Kh8 {[%clk 0:02:37]} 16. Na1 {[%clk 0:02:39]}  Na5 {[%clk 0:02:37]} 17. Ba2 {[%clk 0:02:37]}  Nc6 {[%clk 0:02:29]} 18. Kb1 {[%clk 0:02:34]}  Ncd4 {[%clk 0:02:25]} 19. g4 {[%clk 0:02:31]}  Nf3 {[%clk 0:02:23]} 20. Qc3 {[%clk 0:02:00]}  N5h4 {[%clk 0:02:14]} 21. f5 {[%clk 0:01:58]}  Qe7 {[%clk 0:02:06]} 22. Ng3 {[%clk 0:01:43]}  c6 {[%clk 0:01:58]} 23. Qb4 {[%clk 0:01:32]}  c5 {[%clk 0:01:49]} 24. Qf4 {[%clk 0:01:22]}  Ne5 {[%clk 0:01:40]} 25. Rhe1 {[%clk 0:01:19]}  Ng2 {[%clk 0:01:36]} 26. Qe4 {[%clk 0:01:18]}  Nxe1 {[%clk 0:01:35]} 27. Rxe1 {[%clk 0:01:19]}  Qg5 {[%clk 0:01:25]} 28. h3 {[%clk 0:01:16]}  Bd7 {[%clk 0:01:09]} 29. Qd5 {[%clk 0:01:08]}  Qf4 {[%clk 0:00:59]} 30. Nh5 {[%clk 0:01:05]}  Qf2 {[%clk 0:00:50]} 31. Rd1 {[%clk 0:01:02]}  g6 {[%clk 0:00:23]} 32. fxg6 {[%clk 0:00:56]}  hxg6 {[%clk 0:00:22]} 33. Qxd6 {[%clk 0:00:57]}  Rae8 {[%clk 0:00:20]} 34. c3 {[%clk 0:00:45]}  gxh5 {[%clk 0:00:20]} 35. Qh6# {[%clk 0:00:45]} 1-0


[Site "https://www.chess.com"]

[Event "Titled Tuesday Blitz July 18 Early 2023"]
[White "Thiel, Thomas"]
[Black "Ganiev, Roman"]
[WhiteFideId "4615964"]
[BlackFideId "4131452"]
[WhiteElo "2235"]
[BlackElo "2563"]
[Result "0-1"]
[Round "2"]
[TimeControl "180+2"]
[Date "2023.07.18"]
[WhiteClock "0:00:00"]
[BlackClock "0:00:44"]
[Board "117"]

1. e4 {[%clk 0:03:00]}  c5 {[%clk 0:03:00]} 2. Nc3 {[%clk 0:03:00]}  d6 {[%clk 0:03:00]} 3. f4 {[%clk 0:02:58]}  g6 {[%clk 0:02:59]} 4. Nf3 {[%clk 0:02:57]}  Bg7 {[%clk 0:02:59]} 5. Bc4 {[%clk 0:02:57]}  e6 {[%clk 0:02:59]} 6. O-O {[%clk 0:02:55]}  Nc6 {[%clk 0:02:59]} 7. f5 {[%clk 0:02:52]}  Nf6 {[%clk 0:02:33]} 8. fxe6 {[%clk 0:02:48]}  Bxe6 {[%clk 0:02:32]} 9. Bxe6 {[%clk 0:02:46]}  fxe6 {[%clk 0:02:33]} 10. d3 {[%clk 0:02:41]}  Qe7 {[%clk 0:02:31]} 11. e5 {[%clk 0:02:41]}  dxe5 {[%clk 0:02:29]} 12. Bg5 {[%clk 0:02:40]}  h6 {[%clk 0:02:29]} 13. Bxf6 {[%clk 0:02:39]}  Bxf6 {[%clk 0:02:29]} 14. Ne4 {[%clk 0:02:39]}  Bg7 {[%clk 0:02:29]} 15. Nfd2 {[%clk 0:02:34]}  O-O-O {[%clk 0:02:24]} 16. Nc4 {[%clk 0:02:33]}  Rhf8 {[%clk 0:02:20]} 17. Qg4 {[%clk 0:02:30]}  g5 {[%clk 0:02:21]} 18. Rxf8 {[%clk 0:02:09]}  Rxf8 {[%clk 0:02:20]} 19. Rf1 {[%clk 0:02:08]}  Rf4 {[%clk 0:02:16]} 20. Qe2 {[%clk 0:01:59]}  Nd4 {[%clk 0:02:15]} 21. Qd2 {[%clk 0:01:48]}  b6 {[%clk 0:02:15]} 22. c3 {[%clk 0:01:44]}  Nc6 {[%clk 0:02:05]} 23. Qe2 {[%clk 0:01:39]}  Kc7 {[%clk 0:02:03]} 24. g3 {[%clk 0:01:39]}  Rxf1+ {[%clk 0:02:01]} 25. Qxf1 {[%clk 0:01:39]}  Qf8 {[%clk 0:02:01]} 26. Qxf8 {[%clk 0:01:34]}  Bxf8 {[%clk 0:02:02]} 27. Kg2 {[%clk 0:01:32]}  Be7 {[%clk 0:02:01]} 28. Kf3 {[%clk 0:01:18]}  h5 {[%clk 0:02:00]} 29. Nf2 {[%clk 0:01:17]}  b5 {[%clk 0:01:56]} 30. Nd2 {[%clk 0:01:14]}  g4+ {[%clk 0:01:52]} 31. Ke2 {[%clk 0:01:12]}  a5 {[%clk 0:01:46]} 32. h3 {[%clk 0:01:04]}  gxh3 {[%clk 0:01:41]} 33. Nxh3 {[%clk 0:01:05]}  a4 {[%clk 0:01:37]} 34. a3 {[%clk 0:01:01]}  Kb6 {[%clk 0:01:20]} 35. Kf3 {[%clk 0:00:58]}  Bf8 {[%clk 0:01:11]} 36. Ke4 {[%clk 0:00:57]}  Bh6 {[%clk 0:01:11]} 37. Nb1 {[%clk 0:00:33]}  Bc1 {[%clk 0:01:11]} 38. Nf2 {[%clk 0:00:17]}  Bxb2 {[%clk 0:01:11]} 39. Nd1 {[%clk 0:00:15]}  Bc1 {[%clk 0:01:10]} 40. Nf2 {[%clk 0:00:12]}  b4 {[%clk 0:01:08]} 41. cxb4 {[%clk 0:00:10]}  cxb4 {[%clk 0:01:08]} 42. axb4 {[%clk 0:00:09]}  a3 {[%clk 0:00:52]} 43. Nxa3 {[%clk 0:00:07]}  Bxa3 {[%clk 0:00:53]} 44. g4 {[%clk 0:00:06]}  hxg4 {[%clk 0:00:49]} 45. Nxg4 {[%clk 0:00:07]}  Bb2 {[%clk 0:00:49]} 46. Nf6 {[%clk 0:00:05]}  Bd4 {[%clk 0:00:47]} 47. Nd7+ {[%clk 0:00:03]}  Kb5 {[%clk 0:00:47]} 48. Nf8 {[%clk 0:00:03]}  Kxb4 {[%clk 0:00:44]} 49. Nxe6 {[%clk 0:00:00]}  Kc3 {[%clk 0:00:44]} 0-1


[Site "https://www.chess.com"]

[Event "Titled Tuesday Blitz July 18 Early 2023"]
[White "Wagh Suyog"]
[Black "Bazilius, Augustinas"]
[WhiteFideId "25071688"]
[BlackFideId "12832251"]
[WhiteElo "2827"]
[BlackElo "2400"]
[Result "1-0"]
[Round "2"]
[TimeControl "180+2"]
[Date "2023.07.18"]
[WhiteClock "0:02:20"]
[BlackClock "0:02:27"]
[Board "120"]

1. d4 {[%clk 0:02:54]}  e6 {[%clk 0:03:00]} 2. e4 {[%clk 0:02:46]}  d5 {[%clk 0:03:01]} 3. Bd3 {[%clk 0:02:46]}  dxe4 {[%clk 0:02:56]} 4. Bxe4 {[%clk 0:02:46]}  c5 {[%clk 0:02:57]} 5. Ne2 {[%clk 0:02:30]}  Nf6 {[%clk 0:02:43]} 6. Bf3 {[%clk 0:02:28]}  Nc6 {[%clk 0:02:39]} 7. Be3 {[%clk 0:02:27]}  Be7 {[%clk 0:02:36]} 8. O-O {[%clk 0:02:22]}  O-O {[%clk 0:02:26]} 9. Bxc6 {[%clk 0:02:20]}  bxc6 {[%clk 0:02:26]} 10. dxc5 {[%clk 0:02:20]}  Bxc5 {[%clk 0:02:27]} 1-0


[Site "https://www.chess.com"]

[Event "Titled Tuesday Blitz July 18 Early 2023"]
[White "Hoffmann, Asa"]
[Black "Oro, Faustino"]
[WhiteFideId "2001470"]
[BlackFideId "20000197"]
[WhiteElo "2395"]
[BlackElo "2788"]
[Result "0-1"]
[Round "2"]
[TimeControl "180+2"]
[Date "2023.07.18"]
[WhiteClock "0:00:37"]
[BlackClock "0:00:11"]
[Board "121"]

1. d4 {[%clk 0:02:54]}  d5 {[%clk 0:03:00]} 2. Bg5 {[%clk 0:02:53]}  c5 {[%clk 0:02:55]} 3. dxc5 {[%clk 0:02:52]}  Qa5+ {[%clk 0:02:52]} 4. Nc3 {[%clk 0:02:50]}  e6 {[%clk 0:02:48]} 5. e4 {[%clk 0:02:47]}  Bxc5 {[%clk 0:02:23]} 6. exd5 {[%clk 0:02:47]}  Ne7 {[%clk 0:02:17]} 7. Bb5+ {[%clk 0:02:39]}  Kf8 {[%clk 0:01:45]} 8. dxe6 {[%clk 0:02:26]}  Bxe6 {[%clk 0:01:42]} 9. Ne2 {[%clk 0:02:11]}  a6 {[%clk 0:01:25]} 10. Bd3 {[%clk 0:02:05]}  Nbc6 {[%clk 0:01:25]} 11. O-O {[%clk 0:02:04]}  Bxf2+ {[%clk 0:01:24]} 12. Rxf2 {[%clk 0:02:03]}  Qxg5 {[%clk 0:01:24]} 13. Ne4 {[%clk 0:01:59]}  Qe5 {[%clk 0:01:17]} 14. N2c3 {[%clk 0:01:56]}  g6 {[%clk 0:01:07]} 15. Qf1 {[%clk 0:01:55]}  Kg7 {[%clk 0:01:04]} 16. Re1 {[%clk 0:01:55]}  Rhd8 {[%clk 0:00:40]} 17. h4 {[%clk 0:01:52]}  Bf5 {[%clk 0:00:22]} 18. Ng5 {[%clk 0:01:42]}  Qd4 {[%clk 0:00:22]} 19. Nf3 {[%clk 0:01:28]}  Bxd3 {[%clk 0:00:19]} 20. Nxd4 {[%clk 0:01:18]}  Bxf1 {[%clk 0:00:18]} 21. Nxc6 {[%clk 0:01:15]}  Nxc6 {[%clk 0:00:19]} 22. Rexf1 {[%clk 0:01:12]}  f5 {[%clk 0:00:19]} 23. g4 {[%clk 0:01:11]}  fxg4 {[%clk 0:00:18]} 24. Rf7+ {[%clk 0:01:10]}  Kh6 {[%clk 0:00:13]} 25. Rxb7 {[%clk 0:01:09]}  Ne5 {[%clk 0:00:12]} 26. Ne4 {[%clk 0:01:04]}  Nf3+ {[%clk 0:00:10]} 27. Kg2 {[%clk 0:01:02]}  Rf8 {[%clk 0:00:08]} 28. Ng5 {[%clk 0:01:01]}  Nxh4+ {[%clk 0:00:08]} 29. Kg3 {[%clk 0:00:58]}  Kxg5 {[%clk 0:00:08]} 30. Rxf8 {[%clk 0:00:49]}  Rxf8 {[%clk 0:00:09]} 31. Rxh7 {[%clk 0:00:47]}  Rf3+ {[%clk 0:00:09]} 32. Kh2 {[%clk 0:00:47]}  Rh3+ {[%clk 0:00:09]} 33. Kg1 {[%clk 0:00:43]}  Nf3+ {[%clk 0:00:10]} 34. Kg2 {[%clk 0:00:43]}  Rxh7 {[%clk 0:00:10]} 35. Kf2 {[%clk 0:00:41]}  Kf4 {[%clk 0:00:11]} 36. Ke2 {[%clk 0:00:37]}  Rd7 {[%clk 0:00:11]} 0-1


[Site "https://www.chess.com"]

[Event "Titled Tuesday Blitz July 18 Early 2023"]
[White "Schmakel, Sam"]
[Black "Rodriguez Santiago, Jaime"]
[WhiteFideId "2039311"]
[BlackFideId "3100898"]
[WhiteElo "2766"]
[BlackElo "2391"]
[Result "1-0"]
[Round "2"]
[TimeControl "180+2"]
[Date "2023.07.18"]
[WhiteClock "0:00:07"]
[BlackClock "0:00:00"]
[Board "122"]

1. Nf3 {[%clk 0:03:00]}  Nf6 {[%clk 0:02:58]} 2. b3 {[%clk 0:02:59]}  d5 {[%clk 0:02:57]} 3. Bb2 {[%clk 0:02:59]}  c5 {[%clk 0:02:56]} 4. e3 {[%clk 0:03:00]}  Nc6 {[%clk 0:02:53]} 5. Bb5 {[%clk 0:02:59]}  e6 {[%clk 0:02:47]} 6. O-O {[%clk 0:02:58]}  Bd6 {[%clk 0:02:45]} 7. d3 {[%clk 0:02:57]}  O-O {[%clk 0:02:44]} 8. Bxc6 {[%clk 0:02:56]}  bxc6 {[%clk 0:02:44]} 9. Ne5 {[%clk 0:02:57]}  Bb7 {[%clk 0:02:41]} 10. Nd2 {[%clk 0:02:56]}  Nd7 {[%clk 0:02:37]} 11. Nxd7 {[%clk 0:02:52]}  Qxd7 {[%clk 0:02:36]} 12. f4 {[%clk 0:02:46]}  a5 {[%clk 0:02:32]} 13. a4 {[%clk 0:02:41]}  Ba6 {[%clk 0:02:28]} 14. Rf3 {[%clk 0:02:35]}  f6 {[%clk 0:02:22]} 15. Rh3 {[%clk 0:02:30]}  e5 {[%clk 0:02:15]} 16. fxe5 {[%clk 0:01:56]}  fxe5 {[%clk 0:02:09]} 17. e4 {[%clk 0:01:56]}  Rae8 {[%clk 0:01:46]} 18. Qh5 {[%clk 0:01:46]}  g6 {[%clk 0:01:44]} 19. Qe2 {[%clk 0:01:46]}  c4 {[%clk 0:01:29]} 20. bxc4 {[%clk 0:01:42]}  Bc5+ {[%clk 0:01:28]} 21. Kh1 {[%clk 0:01:34]}  Rf2 {[%clk 0:01:27]} 22. Qe1 {[%clk 0:01:35]}  Ref8 {[%clk 0:00:46]} 23. Bxe5 {[%clk 0:01:30]}  dxc4 {[%clk 0:00:40]} 24. d4 {[%clk 0:00:56]}  Bxd4 {[%clk 0:00:39]} 25. Bxd4 {[%clk 0:00:57]}  Qxd4 {[%clk 0:00:38]} 26. Nf3 {[%clk 0:00:58]}  R2xf3 {[%clk 0:00:26]} 27. Rxf3 {[%clk 0:00:55]}  Re8 {[%clk 0:00:22]} 28. c3 {[%clk 0:00:43]}  Qe5 {[%clk 0:00:16]} 29. Rb1 {[%clk 0:00:36]}  c5 {[%clk 0:00:15]} 30. Rb6 {[%clk 0:00:29]}  Bc8 {[%clk 0:00:14]} 31. h3 {[%clk 0:00:26]}  Rd8 {[%clk 0:00:11]} 32. Qf1 {[%clk 0:00:19]}  Be6 {[%clk 0:00:10]} 33. Rf6 {[%clk 0:00:18]}  Bxh3 {[%clk 0:00:07]} 34. Qxc4+ {[%clk 0:00:08]}  Kh8 {[%clk 0:00:00]} 35. Qe2 {[%clk 0:00:07]} 1-0


[Site "https://www.chess.com"]

[Event "Titled Tuesday Blitz July 18 Early 2023"]
[White "Remizov, Yaroslav"]
[Black "Merino Garcia, Rafael II"]
[WhiteFideId "34134015"]
[BlackFideId "2209128"]
[WhiteElo "2758"]
[BlackElo "2387"]
[Result "1/2-1/2"]
[Round "2"]
[TimeControl "180+2"]
[Date "2023.07.18"]
[WhiteClock "0:00:14"]
[BlackClock "0:00:58"]
[Board "123"]

1. e4 {[%clk 0:03:00]}  d6 {[%clk 0:02:59]} 2. d4 {[%clk 0:03:01]}  Nd7 {[%clk 0:03:00]} 3. Nf3 {[%clk 0:03:00]}  g6 {[%clk 0:03:01]} 4. Bc4 {[%clk 0:02:57]}  e6 {[%clk 0:03:01]} 5. h4 {[%clk 0:02:56]}  h6 {[%clk 0:03:00]} 6. Be3 {[%clk 0:02:55]}  Bg7 {[%clk 0:03:00]} 7. Qd2 {[%clk 0:02:54]}  a6 {[%clk 0:03:00]} 8. a4 {[%clk 0:02:54]}  b6 {[%clk 0:03:00]} 9. Nc3 {[%clk 0:02:54]}  Bb7 {[%clk 0:03:01]} 10. O-O {[%clk 0:02:52]}  Ne7 {[%clk 0:03:01]} 11. Rfe1 {[%clk 0:02:52]}  Nf6 {[%clk 0:02:59]} 12. Bf4 {[%clk 0:02:50]}  d5 {[%clk 0:02:53]} 13. exd5 {[%clk 0:02:49]}  Nexd5 {[%clk 0:02:53]} 14. Nxd5 {[%clk 0:02:48]}  Nxd5 {[%clk 0:02:53]} 15. Bxd5 {[%clk 0:02:45]}  Bxd5 {[%clk 0:02:52]} 16. Qe3 {[%clk 0:02:42]}  Bxf3 {[%clk 0:02:24]} 17. Qxf3 {[%clk 0:02:43]}  O-O {[%clk 0:02:24]} 18. c3 {[%clk 0:02:42]}  Rc8 {[%clk 0:02:19]} 19. h5 {[%clk 0:02:39]}  g5 {[%clk 0:02:18]} 20. Be5 {[%clk 0:02:39]}  Qd5 {[%clk 0:02:17]} 21. Qxd5 {[%clk 0:02:35]}  exd5 {[%clk 0:02:17]} 22. Bxg7 {[%clk 0:02:35]}  Kxg7 {[%clk 0:02:15]} 23. Re5 {[%clk 0:02:36]}  Rfd8 {[%clk 0:02:10]} 24. Rae1 {[%clk 0:02:33]}  Rd7 {[%clk 0:02:10]} 25. g4 {[%clk 0:02:24]}  Rcd8 {[%clk 0:02:06]} 26. Kg2 {[%clk 0:02:23]}  a5 {[%clk 0:02:05]} 27. Kg3 {[%clk 0:02:20]}  Rd6 {[%clk 0:02:04]} 28. Re7 {[%clk 0:02:15]}  R8d7 {[%clk 0:02:04]} 29. Rxd7 {[%clk 0:02:15]}  Rxd7 {[%clk 0:02:04]} 30. f4 {[%clk 0:02:15]}  gxf4+ {[%clk 0:01:59]} 31. Kxf4 {[%clk 0:02:16]}  Kf6 {[%clk 0:01:56]} 32. Re5 {[%clk 0:02:15]}  c6 {[%clk 0:01:52]} 33. Rf5+ {[%clk 0:02:10]}  Kg7 {[%clk 0:01:49]} 34. g5 {[%clk 0:02:08]}  hxg5+ {[%clk 0:01:48]} 35. Kxg5 {[%clk 0:02:07]}  Rd6 {[%clk 0:01:46]} 36. Rf2 {[%clk 0:01:59]}  Re6 {[%clk 0:01:42]} 37. Rg2 {[%clk 0:01:59]}  Kh7 {[%clk 0:01:38]} 38. Kf5 {[%clk 0:01:55]}  Kh6 {[%clk 0:01:37]} 39. b4 {[%clk 0:01:48]}  Re3 {[%clk 0:01:33]} 40. bxa5 {[%clk 0:01:37]}  bxa5 {[%clk 0:01:33]} 41. Rc2 {[%clk 0:01:37]}  Re1 {[%clk 0:01:28]} 42. Kf6 {[%clk 0:01:36]}  Rf1+ {[%clk 0:01:24]} 43. Ke5 {[%clk 0:01:33]}  Kxh5 {[%clk 0:01:23]} 44. Kd6 {[%clk 0:01:31]}  Rf6+ {[%clk 0:01:23]} 45. Kc5 {[%clk 0:01:31]}  Re6 {[%clk 0:01:21]} 46. Kb6 {[%clk 0:01:31]}  f5 {[%clk 0:01:21]} 47. Kxa5 {[%clk 0:01:31]}  f4 {[%clk 0:01:21]} 48. Kb6 {[%clk 0:01:31]}  f3 {[%clk 0:01:21]} 49. a5 {[%clk 0:01:31]}  Kg4 {[%clk 0:01:19]} 50. a6 {[%clk 0:01:31]}  Re2 {[%clk 0:01:19]} 51. Rxe2 {[%clk 0:01:19]}  fxe2 {[%clk 0:01:19]} 52. a7 {[%clk 0:01:19]}  e1=Q {[%clk 0:01:20]} 53. a8=Q {[%clk 0:01:20]}  Qxc3 {[%clk 0:01:19]} 54. Qg8+ {[%clk 0:01:17]}  Kf4 {[%clk 0:01:15]} 55. Qg7 {[%clk 0:01:10]}  Ke4 {[%clk 0:01:11]} 56. Qe5+ {[%clk 0:01:08]}  Kd3 {[%clk 0:01:12]} 57. Qg3+ {[%clk 0:01:04]}  Kc4 {[%clk 0:01:12]} 58. Qg2 {[%clk 0:00:52]}  Qxd4+ {[%clk 0:01:11]} 59. Kxc6 {[%clk 0:00:53]}  Qc5+ {[%clk 0:01:12]} 60. Kd7 {[%clk 0:00:52]}  d4 {[%clk 0:01:09]} 61. Qc2+ {[%clk 0:00:52]}  Kd5 {[%clk 0:01:07]} 62. Qf5+ {[%clk 0:00:51]}  Kc4 {[%clk 0:01:07]} 63. Qc2+ {[%clk 0:00:50]}  Kb4 {[%clk 0:01:07]} 64. Qb2+ {[%clk 0:00:48]}  Ka5 {[%clk 0:01:06]} 65. Qa2+ {[%clk 0:00:46]}  Kb6 {[%clk 0:01:06]} 66. Ke6 {[%clk 0:00:44]}  d3 {[%clk 0:01:02]} 67. Qb2+ {[%clk 0:00:37]}  Qb5 {[%clk 0:01:02]} 68. Qd4+ {[%clk 0:00:37]}  Ka5 {[%clk 0:01:02]} 69. Qc3+ {[%clk 0:00:33]}  Ka4 {[%clk 0:01:02]} 70. Qa1+ {[%clk 0:00:31]}  Kb4 {[%clk 0:01:02]} 71. Qb2+ {[%clk 0:00:31]}  Kc4 {[%clk 0:01:03]} 72. Qc1+ {[%clk 0:00:31]}  Kd4 {[%clk 0:01:03]} 73. Qf4+ {[%clk 0:00:31]}  Kc3 {[%clk 0:01:03]} 74. Qc1+ {[%clk 0:00:32]}  Kb3 {[%clk 0:01:01]} 75. Qb1+ {[%clk 0:00:30]}  Kc4 {[%clk 0:01:02]} 76. Qc1+ {[%clk 0:00:28]}  Kb4 {[%clk 0:01:02]} 77. Qb2+ {[%clk 0:00:20]}  Ka5 {[%clk 0:01:02]} 78. Qc3+ {[%clk 0:00:18]}  Kb6 {[%clk 0:01:03]} 79. Qd4+ {[%clk 0:00:17]}  Ka6 {[%clk 0:01:02]} 80. Qc3 {[%clk 0:00:15]}  Kb7 {[%clk 0:00:58]} 81. Qg7+ {[%clk 0:00:13]}  Kb6 {[%clk 0:00:58]} 82. Qd4+ {[%clk 0:00:14]} 1/2-1/2


[Site "https://www.chess.com"]